bitfinex-derivatives/quotes_BTCF0:USTF0_20250308
["timestamp","ask_amount","ask_price","bid_price","bid_amount"]
[1741440665062,1.64957643,86523.0,86522.0,0.01589738]
[1741440665258,0.115629,86499.0,86498.0,0.0188952]
[1741440665455,0.115629,86499.0,86498.0,0.03163757]
[1741440665655,0.11376362,86499.0,86498.0,0.0208952]
[1741440666163,0.1146344,86495.0,86494.0,0.00173417]
[1741440666756,0.11664726,86495.0,86494.0,0.00173417]
[1741440667557,0.00201286,86495.0,86494.0,0.00173417]
[1741440667753,0.00201286,86495.0,86494.0,0.01532599]
[1741440668265,0.49956668,86520.0,86494.0,0.01532599]
[1741440668461,0.49956668,86520.0,86505.0,0.115621]
[1741440668462,0.14988,86516.0,86505.0,0.115621]
[1741440668655,0.14988,86516.0,86515.0,0.1156076]
[1741440668859,0.14988,86516.0,86515.0,0.01359182]
[1741440669058,0.14988,86516.0,86515.0,0.0382837]
[1741440669863,0.14988,86516.0,86515.0,0.0402837]
[1741440670258,0.67898,86517.0,86515.0,0.0402837]
[1741440670466,0.67898,86517.0,86516.0,0.15119684]
[1741440670763,0.67898,86517.0,86516.0,0.17588872]
[1741440671170,0.67898,86517.0,86516.0,0.06028242]
[1741440671360,0.67898,86517.0,86516.0,0.17588872]
[1741440672365,0.67898,86517.0,86516.0,0.06028242]
[1741440672563,0.67898,86517.0,86516.0,0.17688872]
[1741440672961,0.794585,86517.0,86516.0,0.06228242]
[1741440673162,0.794585,86517.0,86516.0,0.0402837]
[1741440673680,0.794585,86517.0,86516.0,0.002]
[1741440673681,1.155385,86517.0,86516.0,0.002]
[1741440673967,0.67898,86517.0,86516.0,0.004]
[1741440674159,0.794585,86517.0,86516.0,0.004]
[1741440674672,0.67898,86517.0,86516.0,0.004]
[1741440675068,0.01736,86522.0,86516.0,0.37827915]
[1741440675373,0.01736,86522.0,86521.0,0.1155996]
[1741440675569,0.01736,86522.0,86521.0,0.15067032]
[1741440675870,0.3608,86534.0,86531.0,0.1155863]
[1741440676077,0.3608,86547.0,86546.0,0.1155662]
[1741440677067,0.01736,86547.0,86546.0,0.14169243]
[1741440677568,0.01736,86547.0,86546.0,0.14437217]
[1741440677773,0.01736,86547.0,86546.0,0.01527771]
[1741440678273,0.01736,86547.0,86546.0,0.1165662]
[1741440679060,0.01736,86547.0,86546.0,0.04644571]
[1741440679464,0.01736,86547.0,86546.0,0.033]
[1741440679864,0.01736,86547.0,86546.0,0.032]
[1741440681180,0.01736,86547.0,86546.0,0.04533714]
[1741440681476,0.01736,86547.0,86546.0,0.16090148]
[1741440681668,0.01736,86547.0,86546.0,0.04533528]
[1741440681869,0.01736,86547.0,86546.0,0.04533527]
[1741440682080,0.01736,86547.0,86546.0,0.1475662]
[1741440682466,0.01736,86547.0,86546.0,0.1775662]
[1741440682663,0.01736,86547.0,86546.0,0.062]
[1741440683274,0.1329249,86547.0,86546.0,0.062]
[1741440684173,0.01736,86547.0,86546.0,0.062]
[1741440684872,0.1329249,86547.0,86546.0,0.062]
[1741440685071,0.1661249,86547.0,86546.0,0.062]
[1741440687275,0.1155756,86539.0,86538.0,0.00017332]
[1741440688573,0.12686854,86539.0,86538.0,0.00017332]
[1741440688778,0.26618478,86539.0,86538.0,0.00017332]
[1741440689381,0.1155836,86533.0,86532.0,0.20598209]
[1741440689571,0.6173436,86533.0,86532.0,0.20598209]
[1741440689771,0.7673436,86533.0,86532.0,0.20598209]
[1741440689978,0.1155903,86528.0,86527.0,0.27464278]
[1741440690177,0.4763903,86528.0,86527.0,0.27464278]
[1741440690772,1.12238457,86528.0,86527.0,0.27464278]
[1741440691173,1.15308457,86528.0,86527.0,0.27464278]
[1741440692082,1.15208457,86528.0,86527.0,0.27464278]
[1741440692682,1.16944457,86528.0,86527.0,0.27464278]
[1741440693179,0.1155983,86522.0,86519.0,0.00017332]
[1741440693687,0.26809227,86522.0,86519.0,0.00017332]
[1741440694075,0.476401,86520.0,86519.0,0.00017332]
[1741440694478,0.76054472,86520.0,86519.0,0.00017332]
[1741440695289,0.64494372,86520.0,86499.0,0.0331]
[1741440695586,0.1156277,86500.0,86499.0,0.0331]
[1741440695789,0.9822277,86500.0,86499.0,0.066]
[1741440696085,0.9995877,86500.0,86499.0,0.066]
[1741440696676,0.115629,86499.0,86498.0,0.27449242]
[1741440696878,0.142129,86499.0,86498.0,0.27449242]
[1741440697085,0.0215,86499.0,86498.0,0.35168123]
[1741440697683,0.137129,86499.0,86498.0,0.35168123]
[1741440697890,0.137129,86499.0,86498.0,0.07718881]
[1741440698079,0.137129,86499.0,86498.0,0.08118881]
[1741440698983,0.137129,86499.0,86498.0,0.08618881]
[1741440699384,0.137129,86499.0,86498.0,0.073]
[1741440699790,0.137129,86499.0,86498.0,0.0861579]
[1741440700092,0.1456035,86499.0,86498.0,0.073]
[1741440700783,0.28223807,86499.0,86498.0,0.0412]
[1741440701897,0.31293807,86499.0,86498.0,0.0412]
[1741440704585,0.31293807,86499.0,86498.0,0.009]
[1741440704792,0.31293807,86499.0,86498.0,0.00301721]
[1741440705498,0.31790201,86499.0,86498.0,0.00301721]
[1741440705796,0.31991478,86499.0,86498.0,0.00301721]
[1741440707789,0.32691478,86499.0,86498.0,0.00401721]
[1741440708292,0.32691478,86499.0,86498.0,0.001]
[1741440708499,0.33391478,86499.0,86498.0,0.002]
[1741440709791,0.32691478,86499.0,86498.0,0.001]
[1741440709997,0.33391478,86499.0,86498.0,0.002]
[1741440710499,0.32895084,86499.0,86498.0,0.002]
[1741440711491,0.1136357,86494.0,86493.0,0.0312]
[1741440711686,0.3608,86494.0,86493.0,0.0312]
[1741440711899,0.15292727,86499.0,86493.0,0.0312]
[1741440712089,0.15292727,86499.0,86498.0,0.001]
[1741440712395,0.15292727,86499.0,86498.0,0.002]
[1741440712396,0.26855627,86499.0,86498.0,0.002]
[1741440712898,0.26855627,86499.0,86498.0,0.001]
[1741440712899,0.26155627,86499.0,86498.0,0.001]
[1741440713096,0.1156357,86494.0,86493.0,0.0322]
[1741440713303,0.1156349,86495.0,86493.0,0.04528285]
[1741440713599,0.14292727,86499.0,86494.0,0.0318]
[1741440713799,0.1156344,86495.0,86494.0,0.0318]
[1741440713995,0.1156344,86495.0,86494.0,0.04488402]
[1741440714300,0.1156344,86495.0,86494.0,0.0318]
[1741440714498,0.1156324,86497.0,86494.0,0.04487633]
[1741440714688,0.1156324,86497.0,86495.0,0.01307633]
[1741440714892,0.0578154,86498.0,86494.0,0.0318]
[1741440715088,0.1156344,86495.0,86494.0,0.0318]
[1741440715287,0.1186344,86495.0,86494.0,0.0318]
[1741440715496,0.4794344,86495.0,86494.0,0.04489999]
[1741440715697,0.4794344,86495.0,86494.0,0.0318]
[1741440715902,0.4764344,86495.0,86494.0,0.0318]
[1741440716091,0.5575944,86495.0,86494.0,0.03152001]
[1741440716294,0.5402344,86495.0,86494.0,0.03152001]
[1741440716494,0.5605944,86495.0,86494.0,0.03152001]
[1741440716699,0.5273944,86495.0,86494.0,0.03152001]
[1741440717899,0.5303944,86495.0,86494.0,0.03152001]
[1741440718402,0.5323944,86495.0,86494.0,0.03252001]
[1741440718710,0.5343944,86495.0,86494.0,0.03352001]
[1741440719307,0.66162118,86495.0,86494.0,0.03252001]
[1741440719500,0.66662118,86495.0,86494.0,0.0466107]
[1741440720409,0.66662118,86495.0,86494.0,0.04661146]
[1741440720410,0.27522118,86495.0,86494.0,0.04661146]
[1741440720713,0.63602118,86495.0,86494.0,0.04661146]
[1741440721208,0.27529702,86495.0,86494.0,0.03352001]
[1741440721507,0.64109702,86495.0,86494.0,0.03452001]
[1741440721804,0.64109702,86495.0,86494.0,0.03352001]
[1741440722004,0.66889702,86495.0,86494.0,0.03352001]
[1741440722602,0.66389702,86495.0,86494.0,0.03252001]
[1741440722910,0.66889702,86495.0,86494.0,0.03352001]
[1741440723096,0.66389702,86495.0,86494.0,0.03252001]
[1741440723302,0.66789702,86495.0,86494.0,0.03352001]
[1741440723898,0.66990981,86495.0,86494.0,0.03352001]
[1741440724796,0.66990981,86495.0,86494.0,0.002]
[1741440725009,0.70250981,86495.0,86494.0,0.002]
[1741440725912,0.70350981,86495.0,86494.0,0.002]
[1741440726618,0.70149702,86495.0,86494.0,0.002]
[1741440726803,0.03230262,86495.0,86494.0,0.002]
[1741440727004,0.03230262,86495.0,86494.0,0.1176357]
[1741440727211,0.62884,86500.0,86499.0,0.115629]
[1741440727407,0.62884,86500.0,86499.0,0.12893071]
[1741440727707,0.3608,86525.0,86499.0,0.12893071]
[1741440727708,0.27711788,86523.0,86522.0,0.1155983]
[1741440727908,0.29447788,86523.0,86522.0,0.12889291]
[1741440728711,0.24457788,86523.0,86522.0,0.14024421]
[1741440728916,0.24957788,86523.0,86522.0,0.14024421]
[1741440729116,0.11071788,86523.0,86522.0,0.29024421]
[1741440729318,0.11571788,86523.0,86522.0,0.29024421]
[1741440729712,0.11571788,86523.0,86522.0,0.29026658]
[1741440729919,0.01,86523.0,86522.0,0.14026658]
[1741440730216,0.01736,86530.0,86529.0,0.1155889]
[1741440730521,0.1329476,86530.0,86529.0,0.37411698]
[1741440731509,0.1339476,86530.0,86529.0,0.37511698]
[1741440731708,0.01836,86530.0,86529.0,0.37511698]
[1741440732213,0.01836,86530.0,86529.0,0.40681698]
[1741440732511,0.01836,86530.0,86529.0,0.52240588]
[1741440733616,0.01836,86530.0,86529.0,0.52232368]
[1741440734617,0.00017332,86531.0,86529.0,0.67232368]
[1741440734918,0.0302,86549.0,86546.0,0.115565]
[1741440735220,0.0302,86549.0,86547.0,0.16005662]
[1741440735221,0.0317,86548.0,86547.0,0.16005662]
[1741440735519,0.0317,86548.0,86547.0,0.05548519]
[1741440735720,0.0317,86548.0,86547.0,0.20811247]
[1741440735920,0.0317,86548.0,86547.0,0.09254757]
[1741440736114,0.1472636,86548.0,86547.0,0.04984757]
[1741440736312,0.1973236,86548.0,86547.0,0.04984757]
[1741440736516,0.1973236,86548.0,86547.0,0.02755383]
[1741440736718,0.1983236,86548.0,86547.0,0.02855383]
[1741440737019,0.1983236,86548.0,86547.0,0.01378519]
[1741440737414,0.1983236,86548.0,86547.0,0.01487498]
[1741440737612,0.1983236,86548.0,86547.0,0.01587498]
[1741440737815,0.08376,86548.0,86547.0,0.01587498]
[1741440738622,0.07376,86548.0,86547.0,0.01587498]
[1741440738920,0.07376,86548.0,86547.0,0.03808363]
[1741440740722,0.002,86548.0,86547.0,0.1951068]
[1741440740917,0.01736,86557.0,86547.0,0.2905963]
[1741440741122,0.01736,86557.0,86556.0,0.4763529]
[1741440741424,0.01736,86557.0,86556.0,0.4521327]
[1741440741631,0.01736,86559.0,86558.0,0.1155502]
[1741440741926,0.01736,86559.0,86558.0,0.20688104]
[1741440742421,0.01736,86562.0,86561.0,0.1155462]
[1741440742627,0.01736,86562.0,86561.0,0.0775419]
[1741440743121,0.01736,86562.0,86561.0,0.14977387]
[1741440743325,0.01736,86562.0,86561.0,0.26532007]
[1741440743534,0.01736,86562.0,86561.0,0.14977387]
[1741440743726,0.1349049,86562.0,86561.0,0.14977387]
[1741440743919,0.1349049,86562.0,86561.0,0.13613361]
[1741440744422,0.01936,86562.0,86561.0,0.1083156]
[1741440744627,0.01936,86562.0,86561.0,0.10532025]
[1741440744930,0.1349049,86562.0,86561.0,0.10532025]
[1741440745120,0.1674049,86562.0,86561.0,0.10532025]
[1741440745321,0.1674049,86562.0,86561.0,0.10827488]
[1741440745921,0.1674049,86562.0,86530.0,0.1386949]
[1741440745922,0.1155662,86546.0,86536.0,0.03156694]
[1741440746128,0.0312,86545.0,86540.0,0.0138641]
[1741440746319,0.0312,86545.0,86537.0,0.021]
[1741440746320,0.0312,86545.0,86541.0,0.0138641]
[1741440746526,0.0312,86545.0,86538.0,0.00333305]
[1741440746725,0.0312,86545.0,86538.0,0.00173305]
[1741440746726,0.1467683,86545.0,86538.0,0.00173305]
[1741440747029,0.01936,86562.0,86540.0,0.04975481]
[1741440747331,0.0312,86561.0,86553.0,0.1155562]
[1741440747632,0.1626,86561.0,86554.0,0.16059095]
[1741440747837,0.1626,86561.0,86558.0,0.1155502]
[1741440748133,0.1626,86561.0,86559.0,0.0312]
[1741440748318,0.1626,86561.0,86559.0,0.1467489]
[1741440748518,0.1626,86561.0,86559.0,0.0312]
[1741440748927,0.0312,86561.0,86559.0,0.0312]
[1741440749125,0.0328,86560.0,86548.0,0.3608]
[1741440749433,0.1483478,86560.0,86549.0,0.04505931]
[1741440749627,0.0302,86559.0,86550.0,0.15255421]
[1741440749833,0.0302,86559.0,86552.0,0.1155577]
[1741440750027,0.031,86558.0,86553.0,0.01385931]
[1741440750329,0.031,86558.0,86554.0,0.01385931]
[1741440750522,0.0302,86557.0,86555.0,0.01385931]
[1741440750720,0.0302,86557.0,86556.0,0.01385931]
[1741440752037,0.0312,86557.0,86556.0,0.01385931]
[1741440752731,0.0312,86557.0,86548.0,0.013782]
[1741440752732,0.0889762,86557.0,86548.0,0.013782]
[1741440752932,0.1155597,86551.0,86549.0,0.01382417]
[1741440753130,0.032,86550.0,86548.0,0.013782]
[1741440753330,0.1797609,86550.0,86549.0,0.01383645]
[1741440753526,0.1155676,86545.0,86544.0,0.01381371]
[1741440753735,0.1155676,86545.0,86542.0,0.01381371]
[1741440754032,0.1457689,86544.0,86543.0,0.02812346]
[1741440754234,0.15852,86544.0,86543.0,0.02812346]
[1741440754428,0.15852,86544.0,86543.0,0.04194878]
[1741440754630,0.2740889,86544.0,86543.0,0.04194878]
[1741440754828,0.2740889,86544.0,86543.0,0.01382532]
[1741440755341,0.19011345,86544.0,86543.0,0.001]
[1741440755734,0.19011345,86544.0,86541.0,0.27353166]
[1741440755934,0.1145716,86542.0,86541.0,0.27353166]
[1741440756130,0.1319316,86542.0,86541.0,0.29559008]
[1741440756634,0.1319316,86542.0,86541.0,0.32007745]
[1741440757031,0.26721941,86542.0,86541.0,0.32007745]
[1741440757241,0.26721941,86542.0,86541.0,0.27017745]
[1741440757441,0.27121941,86542.0,86541.0,0.24569008]
[1741440757939,0.27121941,86542.0,86541.0,0.0507287]
[1741440758633,0.02136,86542.0,86541.0,0.54889449]
[1741440758937,0.01736,86551.0,86550.0,0.1155609]
[1741440759138,0.01736,86551.0,86550.0,0.53373174]
[1741440759833,0.01736,86551.0,86550.0,0.54886545]
[1741440760436,0.02336,86551.0,86550.0,0.54986545]
[1741440760838,0.02336,86551.0,86550.0,1.06907332]
[1741440761035,0.02436,86551.0,86550.0,1.06907332]
[1741440761236,0.02436,86551.0,86550.0,1.09999565]
[1741440761733,0.02436,86551.0,86550.0,1.13049565]
[1741440761938,0.02436,86551.0,86550.0,1.10843723]
[1741440762646,0.02436,86551.0,86550.0,0.96237633]
[1741440762847,0.1399196,86551.0,86550.0,0.57057633]
[1741440763036,0.02436,86551.0,86550.0,0.63467633]
[1741440764241,0.02436,86551.0,86550.0,0.75023723]
[1741440764448,0.02436,86551.0,86550.0,0.23202936]
[1741440765041,0.007,86551.0,86550.0,0.23202936]
[1741440765542,0.007,86551.0,86550.0,0.21689565]
[1741440766841,0.007,86551.0,86550.0,0.36689565]
[1741440767040,0.01736,86560.0,86559.0,0.1155489]
[1741440767244,0.01736,86560.0,86559.0,0.51054537]
[1741440767450,0.01736,86560.0,86559.0,0.52398043]
[1741440767848,0.01736,86560.0,86559.0,0.57528161]
[1741440768244,0.01836,86560.0,86559.0,0.57628161]
[1741440768647,0.01836,86560.0,86559.0,0.55478396]
[1741440769252,0.01836,86560.0,86559.0,0.55578396]
[1741440770348,0.01836,86560.0,86559.0,0.55478396]
[1741440770545,0.01736,86560.0,86559.0,0.57532191]
[1741440770958,0.01736,86560.0,86559.0,0.58815383]
[1741440771149,0.01736,86560.0,86559.0,1.43380772]
[1741440771754,0.01736,86560.0,86559.0,1.44810904]
[1741440772347,0.01736,86569.0,86568.0,0.1155369]
[1741440772552,0.01736,86569.0,86568.0,0.16334173]
[1741440772957,0.01736,86569.0,86568.0,0.22674173]
[1741440773455,0.08176,86569.0,86568.0,0.04780483]
[1741440773655,0.3504155,86569.0,86568.0,0.04780483]
[1741440773849,0.3502955,86569.0,86568.0,0.03497301]
[1741440774246,0.3501755,86569.0,86568.0,0.03497301]
[1741440774652,0.3501755,86569.0,86568.0,0.01343506]
[1741440775255,0.3501755,86569.0,86563.0,0.34316193]
[1741440775256,0.36580264,86569.0,86563.0,0.34316193]
[1741440775560,0.0577702,86566.0,86563.0,0.34316193]
[1741440775762,0.1155422,86564.0,86563.0,0.34316193]
[1741440775954,0.1155422,86564.0,86563.0,0.29326193]
[1741440776153,0.1329022,86564.0,86563.0,0.29326193]
[1741440776360,0.1968022,86564.0,86563.0,0.29326193]
[1741440776559,0.3189222,86564.0,86563.0,0.29326193]
[1741440776861,0.1155542,86555.0,86541.0,0.00173323]
[1741440777049,0.1155542,86555.0,86524.0,0.3608]
[1741440777050,0.1155783,86537.0,86518.0,0.0329]
[1741440777255,0.2378183,86537.0,86536.0,0.47950496]
[1741440777451,0.27263348,86537.0,86527.0,0.54960566]
[1741440777658,0.4763903,86528.0,86527.0,0.54800566]
[1741440777855,0.115605,86517.0,86516.0,0.48203464]
[1741440778167,0.598405,86517.0,86516.0,0.48043464]
[1741440778863,0.73307936,86517.0,86516.0,0.44847482]
[1741440779066,0.73307936,86517.0,86516.0,0.32307482]
[1741440779255,1.11813936,86517.0,86516.0,0.29887482]
[1741440780071,1.12698676,86517.0,86516.0,0.29887482]
[1741440780255,1.12698676,86517.0,86516.0,0.26235012]
[1741440781469,0.1156157,86509.0,86508.0,0.54977896]
[1741440781668,0.4764157,86509.0,86508.0,0.54817896]
[1741440781963,0.62726932,86509.0,86508.0,0.54817896]
[1741440782672,0.84496932,86509.0,86508.0,0.51399266]
[1741440782857,0.1156277,86500.0,86499.0,0.79346975]
[1741440783061,0.4764277,86500.0,86499.0,0.72537521]
[1741440783265,0.76298913,86500.0,86499.0,0.72537521]
[1741440783768,0.1156371,86493.0,86492.0,0.00164]
[1741440783960,0.1156491,86484.0,86483.0,0.0303]
[1741440784268,0.4764491,86484.0,86483.0,0.0303]
[1741440784469,0.4764491,86484.0,86482.0,0.0307]
[1741440784470,0.49518942,86484.0,86482.0,0.0307]
[1741440784671,0.1156504,86483.0,86482.0,0.0307]
[1741440785059,0.11792074,86483.0,86482.0,0.0307]
[1741440785258,0.12922127,86483.0,86482.0,0.0307]
[1741440786156,0.13022127,86483.0,86482.0,0.0307]
[1741440786361,0.11892074,86483.0,86482.0,0.0307]
[1741440787470,0.13057578,86483.0,86482.0,0.0307]
[1741440789169,0.12957578,86483.0,86482.0,0.0307]
[1741440789471,0.01792538,86483.0,86482.0,0.0317]
[1741440789682,0.01565504,86483.0,86482.0,0.0317]
[1741440790670,0.13130544,86483.0,86482.0,0.0317]
[1741440791073,0.13230544,86483.0,86482.0,0.0317]
[1741440791467,0.25110544,86483.0,86482.0,0.0317]
[1741440791870,0.24810544,86483.0,86482.0,0.0307]
[1741440792578,0.38696756,86483.0,86482.0,0.0307]
[1741440792967,0.38898067,86483.0,86482.0,0.0307]
[1741440793469,0.40634067,86483.0,86482.0,0.0307]
[1741440796082,0.40634067,86483.0,86482.0,0.0317]
[1741440796083,0.40934067,86483.0,86482.0,0.0317]
[1741440798166,0.40434067,86483.0,86482.0,0.0307]
[1741440798369,0.40934067,86483.0,86482.0,0.0317]
[1741440798575,0.40732756,86483.0,86482.0,0.0317]
[1741440798776,0.4093407,86483.0,86482.0,0.0317]
[1741440798965,0.4043407,86483.0,86482.0,0.0317]
[1741440799172,0.4093407,86483.0,86482.0,0.0317]
[1741440801175,0.4043407,86483.0,86482.0,0.0307]
[1741440801370,0.4093407,86483.0,86482.0,0.0317]
[1741440801569,0.7701407,86483.0,86482.0,0.0317]
[1741440802877,0.1156585,86477.0,86476.0,0.0303]
[1741440803078,1.2783385,86477.0,86476.0,0.0303]
[1741440803671,1.2783385,86477.0,86462.0,0.0319]
[1741440803672,0.1156772,86463.0,86462.0,0.0319]
[1741440803880,0.9520372,86463.0,86462.0,0.0319]
[1741440804081,0.95212108,86463.0,86462.0,0.0319]
[1741440804686,0.1157093,86439.0,86434.0,0.00173538]
[1741440804882,0.1157093,86439.0,86438.0,0.37400199]
[1741440805184,0.12713714,86439.0,86434.0,0.00173538]
[1741440805383,0.1157147,86435.0,86434.0,0.00173538]
[1741440805587,0.1157147,86435.0,86434.0,0.01495656]
[1741440805886,0.1157147,86435.0,86434.0,0.00173538]
[1741440806085,0.1087147,86435.0,86434.0,0.00173538]
[1741440806286,0.1017147,86435.0,86434.0,0.00173538]
[1741440807289,0.1157173,86433.0,86432.0,0.0319]
[1741440807474,0.1157173,86433.0,86432.0,0.0621]
[1741440807679,0.1157173,86433.0,86432.0,0.07531712]
[1741440807876,0.10779249,86433.0,86432.0,0.0621]
[1741440808485,0.10779249,86433.0,86432.0,0.0691]
[1741440808486,0.10879249,86433.0,86432.0,0.0691]
[1741440808992,0.10979249,86433.0,86432.0,0.0751]
[1741440809478,0.10979249,86433.0,86432.0,0.0681]
[1741440809479,0.25879249,86433.0,86432.0,0.0681]
[1741440809684,0.47649249,86433.0,86432.0,0.0721]
[1741440810084,0.32649249,86433.0,86432.0,0.0721]
[1741440811194,0.45237249,86433.0,86432.0,0.0721]
[1741440811382,0.45137249,86433.0,86432.0,0.0661]
[1741440812084,0.45137249,86433.0,86432.0,0.0621]
[1741440812284,0.45237249,86433.0,86432.0,0.0621]
[1741440812691,0.23467249,86433.0,86432.0,0.0621]
[1741440814191,0.12179249,86433.0,86432.0,0.0621]
[1741440814393,0.11791519,86433.0,86432.0,0.0621]
[1741440814884,0.23363249,86433.0,86432.0,0.0621]
[1741440815087,0.11791519,86433.0,86432.0,0.0621]
[1741440815487,0.23663249,86433.0,86432.0,0.0621]
[1741440815695,0.24063249,86433.0,86432.0,0.0621]
[1741440816088,0.25799249,86433.0,86432.0,0.06197999]
[1741440816592,0.25597821,86433.0,86432.0,0.06197999]
[1741440816792,0.25197821,86433.0,86432.0,0.06197999]
[1741440816997,0.25799246,86433.0,86432.0,0.06197999]
[1741440817200,0.26199246,86433.0,86432.0,0.06197999]
[1741440819091,0.25799246,86433.0,86432.0,0.06197999]
[1741440819286,0.26299246,86433.0,86432.0,0.06197999]
[1741440819494,0.25999246,86433.0,86432.0,0.06197999]
[1741440819702,0.25797821,86433.0,86432.0,0.06197999]
[1741440819904,0.31629255,86433.0,86432.0,0.06197999]
[1741440820202,0.32429255,86433.0,86432.0,0.06297999]
[1741440820401,0.26299255,86433.0,86432.0,0.06297999]
[1741440821899,0.9175912,86438.0,86432.0,0.06297999]
[1741440822096,0.1157173,86433.0,86432.0,0.06297999]
[1741440822404,0.25035565,86433.0,86432.0,0.07611519]
[1741440822705,0.1287173,86433.0,86432.0,0.07611519]
[1741440822899,0.26751289,86433.0,86432.0,0.07611519]
[1741440823107,0.26151289,86433.0,86432.0,0.07611519]
[1741440823400,0.25951289,86433.0,86432.0,0.07611519]
[1741440823811,0.14679559,86433.0,86432.0,0.07511519]
[1741440824204,0.26251289,86433.0,86432.0,0.06197999]
[1741440824396,0.25751289,86433.0,86432.0,0.0751149]
[1741440824705,0.14579559,86433.0,86432.0,0.0751149]
[1741440824903,0.007,86433.0,86432.0,0.07508596]
[1741440825704,0.004,86433.0,86432.0,0.07508596]
[1741440826304,0.004,86433.0,86432.0,0.07608596]
[1741440826600,0.1157171,86434.0,86432.0,0.07808596]
[1741440826807,0.115716,86434.0,86433.0,0.01310597]
[1741440827208,0.01736,86437.0,86433.0,0.07700597]
[1741440827505,0.01736,86437.0,86434.0,0.01310597]
[1741440827506,0.1157147,86435.0,86434.0,0.01310597]
[1741440827901,0.1157147,86435.0,86434.0,0.04550597]
[1741440829406,0.1157147,86435.0,86434.0,0.0324]
[1741440830002,0.001,86435.0,86434.0,0.0324]
[1741440830200,0.001,86435.0,86434.0,0.04556798]
[1741440830401,0.01736,86437.0,86434.0,0.04556798]
[1741440830602,0.01736,86437.0,86435.0,0.01316798]
[1741440830798,0.01736,86437.0,86436.0,0.01316798]
[1741440831401,0.133072,86437.0,86436.0,0.01316798]
[1741440831913,0.135072,86437.0,86436.0,0.01316798]
[1741440832305,0.01936,86437.0,86436.0,0.01315326]
[1741440832612,0.135072,86437.0,86436.0,0.01315326]
[1741440833406,0.139072,86437.0,86436.0,0.01315326]
[1741440833913,0.138072,86437.0,86436.0,0.01315326]
[1741440834209,0.138072,86437.0,86434.0,0.0324]
[1741440834513,0.1157133,86436.0,86435.0,0.01316111]
[1741440836304,0.1167133,86436.0,86435.0,0.01316111]
[1741440836504,0.1340733,86436.0,86435.0,0.01316111]
[1741440836905,0.1330733,86436.0,86435.0,0.01316111]
[1741440837106,0.1350733,86436.0,86435.0,0.01316111]
[1741440837414,0.02136,86436.0,86435.0,0.27887581]
[1741440837713,0.02136,86436.0,86435.0,0.12887581]
[1741440838011,0.02136,86436.0,86435.0,0.16017581]
[1741440838607,0.01936,86436.0,86435.0,0.16017581]
[1741440838814,0.02136,86436.0,86435.0,0.16017581]
[1741440839216,0.01936,86436.0,86435.0,0.19067581]
[1741440839410,0.02136,86436.0,86435.0,0.19067581]
[1741440840907,0.02136,86436.0,86435.0,0.07496111]
[1741440840908,0.1370733,86436.0,86435.0,0.07496111]
[1741440841314,0.1350733,86436.0,86435.0,0.07496111]
[1741440841516,0.1350733,86436.0,86435.0,0.07796111]
[1741440841709,0.1350733,86436.0,86435.0,0.07797599]
[1741440842615,0.1330733,86436.0,86435.0,0.07997599]
[1741440843018,0.01736,86436.0,86435.0,0.19569069]
[1741440843323,0.1350733,86436.0,86435.0,0.07497599]
[1741440843521,0.1360733,86436.0,86435.0,0.07497599]
[1741440843721,0.1360733,86436.0,86435.0,0.07496848]
[1741440843920,0.1370733,86436.0,86435.0,0.07496848]
[1741440844722,0.02136,86436.0,86435.0,0.07496848]
[1741440845018,0.1380733,86436.0,86435.0,0.07496848]
[1741440845724,0.1380733,86436.0,86435.0,0.07498022]
[1741440845725,0.18026024,86436.0,86435.0,0.07498022]
[1741440845910,0.18026024,86436.0,86435.0,0.0618]
[1741440846106,0.1157187,86432.0,86431.0,0.031]
[1741440846326,0.11572,86431.0,86430.0,0.00017353]
[1741440846509,0.17632,86431.0,86430.0,0.00017353]
[1741440846913,0.3119202,86431.0,86430.0,0.00017353]
[1741440848117,0.3139202,86431.0,86430.0,0.01335241]
[1741440848815,0.3159202,86431.0,86430.0,0.01335241]
[1741440849710,0.3159202,86431.0,86430.0,0.00017353]
[1741440850122,0.3169202,86431.0,86430.0,0.00017353]
[1741440851922,0.3732095,86431.0,86430.0,0.00017353]
[1741440852713,0.3711951,86431.0,86430.0,0.00017353]
[1741440852913,0.37320964,86431.0,86430.0,0.00017353]
[1741440855510,0.50416142,86431.0,86430.0,0.00017353]
[1741440855710,0.50214688,86431.0,86430.0,0.00017353]
[1741440855920,0.51950688,86431.0,86430.0,0.00017353]
[1741440856819,0.52152143,86431.0,86430.0,0.00017353]
[1741440859027,0.59815728,86431.0,86430.0,0.00017353]
[1741440862524,0.1157361,86419.0,86418.0,0.031]
[1741440862730,0.4765361,86419.0,86418.0,0.07648577]
[1741440862924,0.4765361,86419.0,86418.0,0.0632]
[1741440863427,0.8373361,86419.0,86418.0,0.0632]
[1741440863815,0.8373361,86419.0,86418.0,0.0652]
[1741440864929,0.83935073,86419.0,86418.0,0.0662]
[1741440865521,0.93855073,86419.0,86418.0,0.0662]
[1741440867324,0.83935073,86419.0,86418.0,0.0662]
[1741440867529,0.93811073,86419.0,86418.0,0.0662]
[1741440868129,0.93811073,86419.0,86418.0,0.07952025]
[1741440872938,0.83935073,86419.0,86418.0,0.07952025]
[1741440873237,0.93699073,86419.0,86418.0,0.07952025]
[1741440873744,0.9349761,86419.0,86418.0,0.07952025]
[1741440874936,0.22921134,86419.0,86418.0,0.07952025]
[1741440875241,0.07951134,86419.0,86418.0,0.20679723]
[1741440875424,0.07951134,86419.0,86418.0,0.09105983]
[1741440875629,0.07951134,86419.0,86418.0,0.12631093]
[1741440875829,0.07951134,86419.0,86418.0,0.12633314]
[1741440876033,0.07951134,86419.0,86418.0,0.14804731]
[1741440876240,0.07951134,86419.0,86418.0,0.16292601]
[1741440876432,0.09687134,86419.0,86418.0,0.16292601]
[1741440876938,0.01736,86420.0,86418.0,0.16292601]
[1741440877131,0.01736,86420.0,86419.0,0.18620949]
[1741440877441,0.1330947,86420.0,86419.0,0.20108819]
[1741440877625,0.1330947,86420.0,86419.0,0.16586502]
[1741440877824,0.1330947,86420.0,86419.0,0.20108239]
[1741440878036,0.1330947,86420.0,86419.0,0.08534669]
[1741440878442,0.1330947,86420.0,86419.0,0.11684669]
[1741440879135,0.01736,86420.0,86419.0,0.23358279]
[1741440879337,0.01736,86420.0,86419.0,0.38458279]
[1741440879542,0.13876374,86425.0,86419.0,0.26884669]
[1741440879732,0.01736,86421.0,86420.0,0.24402757]
[1741440879932,0.01736,86421.0,86420.0,0.27662757]
[1741440880235,0.13876374,86425.0,86420.0,0.27662757]
[1741440880236,0.13876374,86425.0,86420.0,0.38153346]